Workbook

Sheet Tasas
B4: Buscar Tasa de Cambio Nic
C7: Fecha: | D7: 2024-12-31 | H7: =VLOOKUP(D7,fecha,2,FALSE) -> 36.6243
E9: Hoy: | F9: =TODAY() -> 2024-08-28 | H9: =VLOOKUP(F9,fecha,2,FALSE) -> 36.6243
E10: Ayer: | F10: =TODAY()-1 -> 2024-08-27 | H10: =VLOOKUP(F10,fecha,2,FALSE) -> 36.6243
E12: Compra: | F12: 36.1 | H12: https://www.banprogrupopromerica.com.ni/
E13: Venta: | F13: 36.99
E15: Compra: | F15: NIO: 36.1 | H15: https://www.lafise.com/blb
E16: Venta: | F16: USD: 37

Sheet Base
B1: Fecha | C1: Tipo Cambio
B2: 1996-01-02 | C2: 7.97
B3: 1996-01-03 | C3: 7.9725
B4: 1996-01-04 | C4: 7.975
B5: 1996-01-05 | C5: 7.9774
B6: 1996-01-08 | C6: 7.9849
B7: 1996-01-09 | C7: 7.9873
B8: 1996-01-10 | C8: 7.9898
B9: 1996-01-11 | C9: 7.9923
B10: 1996-01-12 | C10: 7.9948
B11: 1996-01-15 | C11: 8.0022
B12: 1996-01-16 | C12: 8.0047
B13: 1996-01-17 | C13: 8.0072
B14: 1996-01-18 | C14: 8.0097
B15: 1996-01-19 | C15: 8.0122
B16: 1996-01-22 | C16: 8.0197
B17: 1996-01-23 | C17: 8.0221
B18: 1996-01-24 | C18: 8.0246
B19: 1996-01-25 | C19: 8.0271
B20: 1996-01-26 | C20: 8.0296
B21: 1996-01-29 | C21: 8.0371
B22: 1996-01-30 | C22: 8.0396
B23: 1996-01-31 | C23: 8.0421
B24: 1996-02-01 | C24: 8.0446
B25: 1996-02-02 | C25: 8.0471
B26: 1996-02-05 | C26: 8.0546
B27: 1996-02-06 | C27: 8.0571
B28: 1996-02-08 | C28: 8.0621
B29: 1996-02-09 | C29: 8.0646
B30: 1996-02-12 | C30: 8.0721
B31: 1996-02-13 | C31: 8.0746
B32: 1996-02-14 | C32: 8.0771
B33: 1996-02-15 | C33: 8.0796
B34: 1996-02-16 | C34: 8.0821
B35: 1996-02-19 | C35: 8.0897
B36: 1996-02-20 | C36: 8.0922
B37: 1996-02-21 | C37: 8.0947
B38: 1996-02-22 | C38: 8.0972
B39: 1996-02-23 | C39: 8.0997
B40: 1996-02-26 | C40: 8.1073
B41: 1996-02-27 | C41: 8.1098
B42: 1996-02-28 | C42: 8.1123
B43: 1996-02-29 | C43: 8.1148
B44: 1996-03-01 | C44: 8.1174
B45: 1996-03-04 | C45: 8.1249
B46: 1996-03-05 | C46: 8.1274
B47: 1996-03-06 | C47: 8.13
B48: 1996-03-07 | C48: 8.1325
B49: 1996-03-08 | C49: 8.135
B50: 1996-03-11 | C50: 8.1426
B51: 1996-03-12 | C51: 8.1451
B52: 1996-03-13 | C52: 8.1477
B53: 1996-03-14 | C53: 8.1502
B54: 1996-03-15 | C54: 8.1527
B55: 1996-03-18 | C55: 8.1603
B56: 1996-03-19 | C56: 8.1628
B57: 1996-03-20 | C57: 8.1654
B58: 1996-03-21 | C58: 8.1679
B59: 1996-03-22 | C59: 8.1705
B60: 1996-03-25 | C60: 8.1781
B61: 1996-03-26 | C61: 8.1806
B62: 1996-03-27 | C62: 8.1831
B63: 1996-03-28 | C63: 8.1857
B64: 1996-03-29 | C64: 8.1882
B65: 1996-03-30 | C65: 8.1908
B66: 1996-03-31 | C66: 8.1933
B67: 1996-04-01 | C67: 8.1959
B68: 1996-04-02 | C68: 8.1984
B69: 1996-04-03 | C69: 8.201
B70: 1996-04-08 | C70: 8.2137
B71: 1996-04-09 | C71: 8.2162
B72: 1996-04-10 | C72: 8.2188
B73: 1996-04-11 | C73: 8.2213
B74: 1996-04-12 | C74: 8.2239
B75: 1996-04-15 | C75: 8.2316
B76: 1996-04-16 | C76: 8.2341
B77: 1996-04-17 | C77: 8.2367
B78: 1996-04-18 | C78: 8.2392
B79: 1996-04-19 | C79: 8.2418
B80: 1996-04-22 | C80: 8.2495
B81: 1996-04-23 | C81: 8.252
B82: 1996-04-24 | C82: 8.2546
B83: 1996-04-25 | C83: 8.2572
B84: 1996-04-26 | C84: 8.2597
B85: 1996-04-29 | C85: 8.2674
B86: 1996-04-30 | C86: 8.27
B87: 1996-05-02 | C87: 8.2751
B88: 1996-05-03 | C88: 8.2777
B89: 1996-05-06 | C89: 8.2854
B90: 1996-05-07 | C90: 8.288
B91: 1996-05-08 | C91: 8.2906
B92: 1996-05-09 | C92: 8.2931
B93: 1996-05-10 | C93: 8.2957
B94: 1996-05-13 | C94: 8.3034
B95: 1996-05-14 | C95: 8.306
B96: 1996-05-15 | C96: 8.3086
B97: 1996-05-16 | C97: 8.3112
B98: 1996-05-17 | C98: 8.3138
B99: 1996-05-20 | C99: 8.3215
B100: 1996-05-21 | C100: 8.3241
B101: 1996-05-22 | C101: 8.3267
B102: 1996-05-23 | C102: 8.3293
B103: 1996-05-24 | C103: 8.3318
B104: 1996-05-27 | C104: 8.3396
B105: 1996-05-28 | C105: 8.3422
B106: 1996-05-29 | C106: 8.3448
B107: 1996-05-30 | C107: 8.3474
B108: 1996-05-31 | C108: 8.35
B109: 1996-06-03 | C109: 8.3578
B110: 1996-06-04 | C110: 8.3604
B111: 1996-06-05 | C111: 8.3629
B112: 1996-06-06 | C112: 8.3655
B113: 1996-06-07 | C113: 8.3681
B114: 1996-06-10 | C114: 8.3759
B115: 1996-06-11 | C115: 8.3785
B116: 1996-06-12 | C116: 8.3811
B117: 1996-06-13 | C117: 8.3837
B118: 1996-06-14 | C118: 8.3864
B119: 1996-06-17 | C119: 8.3942
B120: 1996-06-18 | C120: 8.3968
B121: 1996-06-19 | C121: 8.3994
B122: 1996-06-20 | C122: 8.402
B123: 1996-06-21 | C123: 8.4046
B124: 1996-06-24 | C124: 8.4124
B125: 1996-06-25 | C125: 8.415
B126: 1996-06-26 | C126: 8.4177
B127: 1996-06-27 | C127: 8.4203
B128: 1996-06-28 | C128: 8.4229
B129: 1996-06-29 | C129: 8.4255
B130: 1996-06-30 | C130: 8.4281
B131: 1996-07-01 | C131: 8.4307
B132: 1996-07-02 | C132: 8.4334
B133: 1996-07-03 | C133: 8.436
B134: 1996-07-04 | C134: 8.4386
B135: 1996-07-05 | C135: 8.4412
B136: 1996-07-08 | C136: 8.4491
B137: 1996-07-09 | C137: 8.4517
B138: 1996-07-10 | C138: 8.4543
B139: 1996-07-11 | C139: 8.457
B140: 1996-07-12 | C140: 8.4596
B141: 1996-07-15 | C141: 8.4675
B142: 1996-07-16 | C142: 8.4701
B143: 1996-07-17 | C143: 8.4727
B144: 1996-07-18 | C144: 8.4754
B145: 1996-07-22 | C145: 8.4859
B146: 1996-07-23 | C146: 8.4885
B147: 1996-07-24 | C147: 8.4912
B148: 1996-07-25 | C148: 8.4938
B149: 1996-07-26 | C149: 8.4964
B150: 1996-07-29 | C150: 8.5043
B151: 1996-07-30 | C151: 8.507
B152: 1996-07-31 | C152: 8.5096
B153: 1996-08-02 | C153: 8.5149
B154: 1996-08-05 | C154: 8.5229
B155: 1996-08-06 | C155: 8.5255
B156: 1996-08-07 | C156: 8.5281
B157: 1996-08-08 | C157: 8.5308
B158: 1996-08-09 | C158: 8.5334
B159: 1996-08-12 | C159: 8.5414
B160: 1996-08-13 | C160: 8.544
B161: 1996-08-14 | C161: 8.5467
B162: 1996-08-15 | C162: 8.5494
B163: 1996-08-16 | C163: 8.552
B164: 1996-08-19 | C164: 8.56
B165: 1996-08-20 | C165: 8.5626
B166: 1996-08-21 | C166: 8.5653
B167: 1996-08-22 | C167: 8.568
B168: 1996-08-23 | C168: 8.5706
B169: 1996-08-26 | C169: 8.5786
B170: 1996-08-27 | C170: 8.5813
B171: 1996-08-28 | C171: 8.5839
B172: 1996-08-29 | C172: 8.5866
B173: 1996-08-30 | C173: 8.5893
B174: 1996-08-31 | C174: 8.5919
B175: 1996-09-02 | C175: 8.5973
B176: 1996-09-03 | C176: 8.5999
B177: 1996-09-04 | C177: 8.6026
B178: 1996-09-05 | C178: 8.6053
B179: 1996-09-06 | C179: 8.608
B180: 1996-09-09 | C180: 8.616
B181: 1996-09-10 | C181: 8.6187
B182: 1996-09-11 | C182: 8.6213
B183: 1996-09-12 | C183: 8.624
B184: 1996-09-13 | C184: 8.6267
B185: 1996-09-17 | C185: 8.6374
B186: 1996-09-18 | C186: 8.6401
B187: 1996-09-19 | C187: 8.6428
B188: 1996-09-20 | C188: 8.6455
B189: 1996-09-23 | C189: 8.6535
B190: 1996-09-24 | C190: 8.6562
B191: 1996-09-25 | C191: 8.6589
B192: 1996-09-26 | C192: 8.6616
B193: 1996-09-27 | C193: 8.6643
B194: 1996-09-30 | C194: 8.6723
B195: 1996-10-01 | C195: 8.675
B196: 1996-10-02 | C196: 8.6777
B197: 1996-10-03 | C197: 8.6804
B198: 1996-10-04 | C198: 8.6831
B199: 1996-10-07 | C199: 8.6912
B200: 1996-10-08 | C200: 8.6939
... 9947 more rows

Sheet DescargaTasa (hidden)
B1: OBTENER TIPO DE CAMBIO DEL BCN
B4: DESDE | C4: HASTA
B5: 2019-12-01 | C5: 2020-04-30
B6: DD/MM/AAAA | C6: DD/MM/AAAA
B8: Fecha | C8: Tipo Cambio

Sheet Hoja1 (hidden)

Sheet Datos (hidden)
C3: MESES | D3: AÑO
C4: ENERO | D4: 1995
C5: FEBRERO | D5: 1996
C6: MARZO | D6: 1997
C7: ABRIL | D7: 1998
C8: MAYO | D8: 1999
C9: JUNIO | D9: 2000
C10: JULIO | D10: 2001
C11: AGOSTO | D11: 2002
C12: SEPTIEMBRE | D12: 2003
C13: OCTUBRE | D13: 2004
C14: NOVIEMBRE | D14: 2005
C15: DICIEMBRE | D15: 2006
D16: 2007
D17: 2008
D18: 2009
D19: 2010
D20: 2011
D21: 2012
D22: 2013
D23: 2014
D24: 2015
